Cogmind - Beta 14 @@@ ROGUE MODE // 2024.12.05 @ 14:06:08 Player: WazdakkaGutsmek Result: Destroyed by H-77 Assassin with Coil Gun Performance ------------- Evolutions (5) 2500 Regions Visited (14) 2800 Robots Destroyed (247) 1235 Value Destroyed (7822) 7822 Prototype IDs (30) 600 Alien Tech Used (1) 200 Bonus (1762) 1762 TOTAL SCORE: 16919 Bonus ------- High Alert Combat Kills 1355 Follower Combat Kills 423 Friendly Fire -16 Cogmind --------- Core Integrity 0/1000 Matter 151/300 Energy 100/100 System Corruption 15% Temperature Cool (0) Movement Core (50) Location -4/Proximity Caves Parts ------- > --- POWER (2) -------- (None) > --- PROPULSION (6) --- (None) > --- UTILITY (6) ------ (None) > --- WEAPON (3) ------- (None) > --- INVENTORY (5) ---- Flexi-carbon Leg Experimental Sensor Array KE Penetrator Mass Driver Peak State ------------ > --- POWER ------------ Fusion Reactor Particle Reactor > --- PROPULSION ------- Enhanced Flexi-carbon Leg Enhanced Flexi-carbon Leg Enhanced Flexi-carbon Leg Advanced Myomer Leg Advanced Myomer Leg Advanced Myomer Leg > --- UTILITY ---------- Advanced Heat Sink High-capacity Storage Unit Precision Matter Filter Particle Accelerator Experimental Utility Shielding Advanced System Shield > --- WEAPON ----------- Heavy Laser KE Penetrator Enhanced Gauss Cannon > --- INVENTORY -------- Improved Ion Engine Light Nuclear Core Light Angular Momentum Engine Light Fission Core Carbon-fiber Leg Improved Titanium Leg Flexi-carbon Leg Enhanced Flexi-carbon Leg Enhanced Flexi-carbon Leg Enhanced Flexi-carbon Leg Advanced Power Amplifier Improved Coolant Injector Experimental Sensor Array Transdimensional Reconstructor Gauss Rifle Advanced Assault Cannon Mass Driver Heavy Rocket Launcher Heavy Rocket Launcher Improved Plasma Cutter [Rating: 120] Favorites ----------- Power Cooled Ion Engine Engine Cooled Ion Engine Power Core Light Fission Core Reactor Particle Reactor Propulsion Enhanced Flexi-carbon Leg Treads Improved Treads Leg Enhanced Flexi-carbon Leg Wheel Armored Huge Wheel Flight Unit Biomechanical Wings Utility Large Storage Unit Device Improved Cooling System Storage Large Storage Unit Processor Target Analyzer Hackware Advanced System Shield Protection Hardened Light Armor Plating Weapon Improved Spread Laser Energy Gun Improved Spread Laser Energy Cannon Ion Cannon Ballistic Gun KE Penetrator Ballistic Cannon Enhanced Gauss Cannon Launcher Missile Launcher Build | -11 -10 -10 -9 -9 -8 -7 -7 -7 -6 -5 -5 -5 -5 -4 ------- Run | Yrd Mat Min Mat Min Mat Fac Was Fac Fac Fac Upp Upp Zhi Pro Slots Evolved 10 | . . . 2 . 2 2 . . 2 2 . . . . Power 1 | . . . . . . . . . 1 . . . . . Propulsion 4 | . . . 1 . 1 1 . . . 1 . . . . Utility 4 | . . . 1 . 1 1 . . . 1 . . . . Weapon 1 | . . . . . . . . . 1 . . . . . Parts Attached 240 | . 4 . 11 . 79 5 . 44 13 38 19 9 15 3 Power 27 | . . . 2 . 5 1 . 6 3 5 4 . 1 . Engine 15 | . . . 1 . 5 1 . 5 . 1 2 . . . Core 9 | . . . 1 . . . . 1 3 3 1 . . . Reactor 3 | . . . . . . . . . . 1 1 . 1 . Propulsion 63 | . 2 . 2 . 25 1 . 11 3 10 2 4 3 . Treads 42 | . 2 . 2 . 25 1 . 10 1 1 . . . . Leg 18 | . . . . . . . . . 1 8 2 4 3 . Wheel 2 | . . . . . . . . 1 1 . . . . . Hover . | . . . . . . . . . . . . . . . Flight 1 | . . . . . . . . . . 1 . . . . Utility 72 | . 2 . 3 . 17 3 . 15 4 13 7 2 6 . Device 42 | . 1 . 2 . 8 1 . 8 3 8 6 1 4 . Storage 5 | . 1 . . . . . . 2 . 1 . 1 . . Processor 3 | . . . . . . . . 1 . 2 . . . . Hackware 1 | . . . . . . . . . . . . . 1 . Protection 21 | . . . 1 . 9 2 . 4 1 2 1 . 1 . Artifact . | . . . . . . . . . . . . . . . Weapon 78 | . . . 4 . 32 . . 12 3 10 6 3 5 3 Energy Gun 37 | . . . 2 . 18 . . 10 1 5 . . 1 . Energy Cannon 8 | . . . 2 . 3 . . 2 . 1 . . . . Ballistic Gun 13 | . . . . . 1 . . . 1 4 5 . 2 . Ballistic Cannon 6 | . . . . . . . . . . . 1 2 2 1 Launcher 14 | . . . . . 10 . . . 1 . . 1 . 2 Special Weapon . | . . . . . . . . . . . . . . . Impact Weapon . | . . . . . . . . . . . . . . . Slashing Weapon . | . . . . . . . . . . . . . . . Piercing Weapon . | . . . . . . . . . . . . . . . Special Melee Weapon . | . . . . . . . . . . . . . . . Unidentified Prototypes 18 | . . . . . 5 . . 5 . 4 . . 4 . Corrupted Parts 3 | . . . . . 3 . . . . . . . . . System Corruption 25 | . . . . . 25 . . . . . . . . . Parts Lost 69 | . . . 3 . 13 . 5 10 12 9 9 3 . 5 Power 12 | . . . 1 . 1 . . 1 3 2 3 . . 1 Propulsion 13 | . . . 1 . . . 3 5 4 . . . . . Utility 24 | . . . 1 . 6 . . 3 3 4 3 2 . 2 Weapon 20 | . . . . . 6 . 2 1 2 3 3 1 . 2 Highest Loss Streak 11 | . . . 1 . 6 . 5 4 11 4 4 2 . 4 To Critical Strikes 1 | . . . . . . . . 1 . . . . . . Average Slot Usage (%) 87 | . 99 100 88 100 96 98 76 77 80 57 94 85 85 95 Engine 5 | . 14 14 3 11 8 7 5 3 1 2 2 . . . Core 2 | . . . 7 . . . . 2 8 2 6 5 2 . Treads 21 | . 25 28 27 33 35 38 26 25 15 2 . . . . Leg 7 | . 2 . . . . . . . . 7 34 34 35 34 Device 12 | . 13 14 10 11 13 13 12 9 12 6 14 14 14 16 Storage 8 | . 14 14 11 11 9 7 5 7 8 5 5 5 5 4 Processor 2 | . . . . . . . . 3 6 7 4 . . . Protection 6 | . . . 6 11 10 14 11 5 2 3 4 . 2 4 Energy Gun 8 | . . . 15 22 9 15 11 14 5 6 2 . 1 . Energy Cannon 1 | . . . 2 . 4 . . . 5 . 1 . . . Ballistic Gun 4 | . 28 28 4 . . . . . 3 6 7 5 4 4 Ballistic Cannon 1 | . . . . . . . . . . . 3 10 5 10 Launcher 1 | . . . . . 3 . . . . . . . . . Peak Build Rating 120 | 6 11 12 21 20 40 45 45 52 65 107 109 97 120 116 Average Rating 48 | 6 9 11 18 20 34 43 35 39 55 55 99 93 98 111 On Entrance 42 | 6 6 11 12 20 20 36 45 2 48 20 107 97 84 116 Naked Turns 42 | . . . . . . . 17 24 . . . . . 1 Heaviest Build 100 | 12 28 28 38 37 52 57 57 88 93 92 98 100 99 99 Greatest Support 168 | 20 46 46 69 69 104 112 112 124 68 168 112 140 146 146 Greatest Overweight (x) 3 | . . . . . . . 3 3 3 3 . . . . Average Overweight (x) . | . . . . . . . . . 1 . . . . . Largest Inventory Capacity 20 | 8 15 15 15 15 15 15 15 20 20 20 20 20 20 20 Average Capacity 16 | 8 12 15 15 15 15 15 13 14 20 20 20 20 20 19 Most Carried 20 | 6 13 13 15 14 15 15 15 19 20 20 20 15 20 20 Average Carried 14 | 6 8 12 14 14 14 14 13 12 18 13 15 13 17 19 Final Capacity 20 | 8 15 15 15 15 15 15 5 20 20 20 20 20 20 5 Final Carried 20 | 6 11 13 14 14 15 15 5 17 17 20 15 13 20 4 Class Distribution -------------------- 61% | Mutant 9% | Tank 8% | Scavenger-Mutant 7% | Scavenger-Tank 6% | Scavenger-Gunner 4% | Gunner Dominant Class ---------------- Mutant | -10/Materials Mutant | -10/Mines Mutant | -9/Materials Mutant | -9/Mines Mutant | -8/Materials Mutant | -7/Factory Mutant | -7/Waste Mutant | -7/Factory Gunner | -6/Factory Scavenger-Gunner | -5/Factory Scavenger-Tank | -5/Upper Caves Tank | -5/Upper Caves Gunner | -5/Zhirov Tank | -4/Proximity Caves Resources | -11 -10 -10 -9 -9 -8 -7 -7 -7 -6 -5 -5 -5 -5 -4 ----------- Run | Yrd Mat Min Mat Min Mat Fac Was Fac Fac Fac Upp Upp Zhi Pro Matter Collected 5081 | 230 91 63 142 . 1712 61 . 586 345 680 572 193 192 214 Remotely . | . . . . . . . . . . . . . . . Salvage Created 9598 | 100 188 50 322 163 3693 61 . 1328 785 1303 610 49 530 416 Parts 480 | 2 5 5 22 17 219 1 . 73 43 46 24 2 6 15 Haulers Intercepted 11 | . . . 1 . 6 . . 2 . 2 . . . . Recyclers Shooed 20 | . 1 . . . 4 . . 4 6 5 . . . . Parts Field Recycled . | . . . . . . . . . . . . . . . Retrieved Matter . | . . . . . . . . . . . . . . . Parts Self-Destructed 32 | . . . . . . . . . . . 16 2 3 11 Prevented 2 | . . . . . . . . . . . . 2 . . Kills | -11 -10 -10 -9 -9 -8 -7 -7 -7 -6 -5 -5 -5 -5 -4 ------- Run | Yrd Mat Min Mat Min Mat Fac Was Fac Fac Fac Upp Upp Zhi Pro Combat Hostiles Destroyed 151 | . 2 3 8 6 52 1 . 25 14 16 9 5 . 10 Guns 93 | . 2 3 6 6 24 . . 25 5 16 5 . . 1 Cannons 20 | . . . 2 . 3 . . . 4 . 4 . . 7 AOE 36 | . . . . . 24 . . . 5 . . 5 . 2 Classes Destroyed 20 | 1 2 1 2 4 7 . . 1 . . 2 . . . Worker 25 | . . . . 1 19 . . 2 1 2 . . . . Builder 32 | . . . . 2 20 . . 3 6 1 . . . . Tunneler 7 | . . . . 1 4 . . 1 . 1 . . . . Hauler 11 | . . . 1 . 6 . . 2 . 2 . . . . Recycler 17 | 1 1 . . . 6 . . 4 1 4 . . . . Mechanic 1 | . . . . . 1 . . . . . . . . . Operator 4 | . 1 . . . 2 . . 1 . . . . . . Watcher 9 | . . . . . 5 . . 2 1 1 . . . . Swarmer 17 | . . 3 . 3 . . . 3 . . 3 5 . . Grunt 79 | . 2 . 4 2 35 . . 14 8 4 1 . . 9 Brawler 4 | . . . . 1 2 . . . . . 1 . . . Duelist 4 | . . . . . 1 . . 1 1 . 1 . . . Protector 1 | . . . . . 1 . . . . . . . . . Sentry 25 | . . . 4 . 9 1 . 4 2 3 1 . . 1 Specialist 1 | . . . . . 1 . . . . . . . . . Hunter 7 | . . . . . 2 . . . 2 3 . . . . Programmer 11 | . . . . . . . . 3 1 6 1 . . . Heavy 1 | . . . . . 1 . . . . . . . . . Behemoth 1 | . . . . . . . . . . . 1 . . . Decomposer 2 | . . . . . . . . . . . 2 . . . Samaritan 4 | . . . . . . . . . . . 4 . . . Best Kill Streak 12 | 1 3 3 2 3 11 1 . 4 12 4 4 5 . 4 Combat Bots Only 8 | . 2 3 2 3 8 1 . 3 7 3 4 5 . 4 Max Kills in Single Turn 5 | 1 1 1 1 1 5 1 . 2 3 1 2 4 . 2 Gunslinging 1 | . . . . . 1 . . . . . . . . . Exploded 4 | . . . . . 3 . . . 2 . . 4 . 2 Melee . | . . . . . . . . . . . . . . . Uniques/NPCs Destroyed . | . . . . . . . . . . . . . . . Combat | -11 -10 -10 -9 -9 -8 -7 -7 -7 -6 -5 -5 -5 -5 -4 -------- Run | Yrd Mat Min Mat Min Mat Fac Was Fac Fac Fac Upp Upp Zhi Pro Hostile Shots Fired 1443 | . 5 10 52 14 337 18 7 276 347 164 124 25 . 64 Missed 435 | . 3 4 14 6 90 6 . 111 112 36 30 4 . 19 Damage Taken 15702 | . 23 52 528 77 3999 77 328 2220 2174 2448 2342 391 . 1043 Core 2262 | . 12 . 60 12 308 . 235 233 388 298 498 55 . 163 Absorbed by Shields 1324 | . . . . . 480 . . . 631 . 91 122 . . Reduced by Siege Mode 25 | . . . . . . . . . . 25 . . . . Redirected to Shielding 164 | . . . . . . . . . . . . . . 164 Ignored by Resistances 29 | . . . . . . . . . . 29 . . . . Regen/Repaired (Parts) 184 | . . . . . 11 . . . 173 . . . . . Core Remaining (%) 68 | 100 . 95 . 82 44 . . 33 54 . . . . . Volleys Fired 650 | 5 14 5 32 18 250 4 . 97 38 80 41 10 27 29 Largest 3 | 2 2 2 2 2 2 2 . 2 3 3 3 3 1 3 Hottest 256 | 40 40 40 130 130 138 110 . 150 195 250 256 147 69 138 Shots Fired 1347 | 10 28 10 64 36 462 8 . 187 96 201 107 22 26 90 Gun 1027 | 10 28 10 56 36 310 8 . 183 58 201 70 8 26 23 Cannon 230 | . . . 8 . 84 . . 4 31 . 37 11 . 55 Launcher 90 | . . . . . 68 . . . 7 . . 3 . 12 Special . | . . . . . . . . . . . . . . . Kinetic 362 | 10 28 10 14 . 6 . . . 30 99 68 19 . 78 Thermal 765 | . . . 50 36 272 8 . 187 59 102 25 . 26 . Explosive 90 | . . . . . 68 . . . 7 . . 3 . 12 Electromagnetic 130 | . . . . . 116 . . . . . 14 . . . Robot Hit Streak 29 | 2 8 2 29 12 14 9 . 16 18 13 13 3 8 10 Robot Miss Streak 13 | 3 3 1 8 6 6 . . 13 7 9 5 4 1 2 Penetration Max 1 | . . . . . . . . . 1 1 1 . . 1 Secondary Targets 8 | . 1 . 2 . 3 . . 2 . . . . . . Max Gunslinging Chain 1 | . 1 . 1 . 1 . . 1 . . . . . . Shots Hit Robots 963 | 4 20 5 55 30 292 7 . 170 64 160 73 9 21 53 Core Hits 863 | 1 8 3 40 52 236 1 . 201 78 166 35 5 11 26 Critical Kills 5 | . . . . . . . . . 1 . 3 . . 1 Critical Parts Destroyed 4 | . . . . . . . . . 1 . 3 . . . Critical Strikes 18 | . . . . . 3 1 . . 2 . 8 . . 4 Burn 4 | . . . . . 3 1 . . . . . . . . Destroy 9 | . . . . . . . . . 2 . 6 . . 1 Blast 5 | . . . . . . . . . . . 2 . . 3 Melee Attacks . | . . . . . . . . . . . . . . . Impact . | . . . . . . . . . . . . . . . Slashing . | . . . . . . . . . . . . . . . Piercing . | . . . . . . . . . . . . . . . Sneak Attacks . | . . . . . . . . . . . . . . . Combat Hostiles . | . . . . . . . . . . . . . . . Follow-up Attacks . | . . . . . . . . . . . . . . . Damage Inflicted 26414 | 53 235 60 698 433 9287 139 . 3542 2933 3905 1858 756 453 2062 Guns 16120 | 53 235 60 622 424 4003 139 . 3462 1151 3905 1232 23 453 358 Cannons 3871 | . . . 68 . 1258 . . 70 606 . 626 240 . 1003 Explosions 6321 | . . . . . 3990 . . . 1137 . . 493 . 701 Melee . | . . . . . . . . . . . . . . . Ramming 102 | . . . 8 9 36 . . 10 39 . . . . . Kinetic 5209 | 53 235 60 159 . 63 . . . 449 1618 948 263 . 1361 Thermal 13187 | . . . 531 424 3761 139 . 3532 1308 2287 752 . 453 . Explosive 5803 | . . . . . 3472 . . . 1137 . . 493 . 701 Electromagnetic 2113 | . . . . . 1955 . . . . . 158 . . . Impact . | . . . . . . . . . . . . . . . Slashing . | . . . . . . . . . . . . . . . Piercing . | . . . . . . . . . . . . . . . Highest Corruption 25 | . . . . . 25 . 9 11 1 12 13 15 15 15 Average Corruption 14 | . . . . . 24 . 9 9 1 7 12 14 15 15 Corruption Purged . | . . . . . . . . . . . . . . . Corruption Blocked . | . . . . . . . . . . . . . . . Effects 343 | . . . . . 119 . 2 78 1 30 47 19 16 31 Message Errors 90 | . . . . . 31 . 1 22 . 8 11 6 5 6 Matter Fused 61 | . . . . . 16 . . 11 . 3 14 5 4 8 Heat Flow Errors 43 | . . . . . 16 . . 6 1 7 5 . 1 7 Energy Discharges 27 | . . . . . 10 . . 6 . 4 3 2 1 1 Parts Rejected 5 | . . . . . 1 . . 2 . . 1 1 . . Parts Fused 3 | . . . . . 1 . . . . 1 . . 1 . Data Loss (minor) 39 | . . . . . 13 . 1 13 . 1 7 2 1 1 Data Loss (major) 18 | . . . . . 7 . . 3 . 1 3 1 2 1 Misfires 19 | . . . . . 4 . . 5 . 2 3 . . 5 Alerts 6 | . . . . . 3 . . 2 . . . . . 1 Misdirections 1 | . . . . . . . . 1 . . . . . . Weapon Failures 31 | . . . . . 17 . . 7 . 3 . 2 1 1 Overload Shots 6 | . . . . . . . . 4 2 . . . . . Overflow Damage 498 | . . . . . 342 . . . 85 . . 50 . 21 Projectiles 184 | . . . . . 125 . . . 16 . . 24 . 19 Explosions 314 | . . . . . 217 . . . 69 . . 26 . 2 Melee . | . . . . . . . . . . . . . . . Knockbacks 13 | . . . . . . . . . 1 . 3 5 . 4 Impact 1 | . . . . . . . . . 1 . . . . . Kinetic 12 | . . . . . . . . . . . 3 5 . 4 Secondary . | . . . . . . . . . . . . . . . Self-Inflicted Damage 538 | . . . . . 317 . . . 33 . . 141 . 47 Shots 12 | . . . . . 6 . . . 1 . . 3 . 2 Rammed 18 | . . . 1 1 7 . . 4 5 . . . . . Targets Rammed 20 | . . . 1 1 9 . . 4 5 . . . . . Kicked . | . . . . . . . . . . . . . . . Crushed 2 | . . . . . 2 . . . . . . . . . Highest Temperature 650 | . . . 197 198 401 . . 245 204 199 650 12 157 287 Average Temperature 97 | . . . 91 95 106 . . 62 75 105 190 5 35 96 Received Heat Transfer 4294 | . 12 . 249 30 1685 12 . 732 422 207 636 . . 309 Effects 12 | . . . . . 2 . . . . . 10 . . . Shutdowns 3 | . . . . . 1 . . . . . 2 . . . Interference 2 | . . . . . 1 . . . . . 1 . . . Matter Decay 1 | . . . . . . . . . . . 1 . . . Short Circuit 1 | . . . . . . . . . . . 1 . . . Damage (major) 4 | . . . . . . . . . . . 4 . . . Damage (core) 1 | . . . . . . . . . . . 1 . . . Siege Activations 4 | . . . . . . . . . . 4 . . . . Total Turns 98 | . . . . . . . . . . 98 . . . . Longest Duration 35 | . . . . . . . . . . 35 . . . . Robots Corrupted 1 | . . . . . 1 . . . . . . . . . Combat Hostiles 1 | . . . . . 1 . . . . . . . . . Parts Fried 14 | . . . . . 14 . . . . . . . . . Impact Corruptions . | . . . . . . . . . . . . . . . Robots Melted 1 | . . . . . . 1 . . . . . . . . Combat Hostiles 1 | . . . . . . 1 . . . . . . . . Parts Melted 17 | . . . . . 13 1 . . 2 1 . . . . Heat Transferred 16164 | . . . 706 550 6204 333 . 2870 1336 2400 970 . 795 . Parts Sabotaged . | . . . . . . . . . . . . . . . Parts Stolen . | . . . . . . . . . . . . . . . Parts Stripped . | . . . . . . . . . . . . . . . Power Chain Reactions 7 | . . . . . 7 . . . . . . . . . Alert | -11 -10 -10 -9 -9 -8 -7 -7 -7 -6 -5 -5 -5 -5 -4 ------- Run | Yrd Mat Min Mat Min Mat Fac Was Fac Fac Fac Upp Upp Zhi Pro Peak Influence 1794 | 5 64 109 132 151 1794 875 306 1055 774 331 . . . . Initial 816 | . 3 24 . 51 35 816 306 189 503 329 . . . . Average 555 | 2 35 66 74 50 965 852 296 473 546 208 . . . . Maximum Alert Level 5 | . . . . . 5 3 1 3 3 1 . . . . Low Security (%) 35 | 100 100 100 100 100 6 . . 30 . 56 . . . . Level 1 17 | . . . . . 15 . 100 25 . 43 . . . . Level 2 10 | . . . . . 6 . . 11 91 . . . . . Level 3 23 | . . . . . 38 100 . 32 8 . . . . . Level 4 7 | . . . . . 17 . . . . . . . . . Level 5 6 | . . . . . 15 . . . . . . . . . High Security . | . . . . . . . . . . . . . . . Max Security . | . . . . . . . . . . . . . . . Sterilizations 1 | . . . . . 1 . . . . . . . . . Squads Dispatched 35 | . 1 . . . 11 . . 15 4 4 . . . . Investigation 4 | . . . . . 2 . . 2 . . . . . . Extermination 8 | . . . . . . . . 5 1 2 . . . . Reinforcement 16 | . 1 . . . 6 . . 5 2 2 . . . . Assault 3 | . . . . . 2 . . 1 . . . . . . Garrison 4 | . . . . . 1 . . 2 1 . . . . . Intercept . | . . . . . . . . . . . . . . . Searches Triggered . | . . . . . . . . . . . . . . . Construction Impeded 5 | . . . . . 3 . . . 2 . . . . . Haulers Reinforced 4 | . . . . . . . . 2 . 2 . . . . Active Scanning Responses . | . . . . . . . . . . . . . . . Cargo Convoy Interrupts . | . . . . . . . . . . . . . . . Stealth | -11 -10 -10 -9 -9 -8 -7 -7 -7 -6 -5 -5 -5 -5 -4 --------- Run | Yrd Mat Min Mat Min Mat Fac Was Fac Fac Fac Upp Upp Zhi Pro Distress Signals 17 | . . . 4 1 6 . . 4 1 1 . . . . Communications Jammed . | . . . . . . . . . . . . . . . Distress Signals . | . . . . . . . . . . . . . . . Times Spotted 253 | . 6 4 12 7 73 1 6 57 29 24 15 7 . 12 Peak Tracking Total 10 | . 2 3 4 3 9 1 6 5 10 4 5 5 . 4 Tactical Retreats 21 | . . 1 1 1 3 . . 5 2 2 5 . . 1 Traps | -11 -10 -10 -9 -9 -8 -7 -7 -7 -6 -5 -5 -5 -5 -4 ------- Run | Yrd Mat Min Mat Min Mat Fac Was Fac Fac Fac Upp Upp Zhi Pro Traps Triggered 8 | . . . 1 . 2 1 . 3 . 1 . . . . Indirectly . | . . . . . . . . . . . . . . . Trap Hack Attempts . | . . . . . . . . . . . . . . . Triggered . | . . . . . . . . . . . . . . . Disarmed . | . . . . . . . . . . . . . . . Reprogrammed 6 | . . . . . 6 . . . . . . . . . Reused 5 | . . . . . 5 . . . . . . . . . Traps Extracted . | . . . . . . . . . . . . . . . Installed . | . . . . . . . . . . . . . . . Triggered 9 | . . . . . 5 . . . . . . 2 . 2 Machines | -11 -10 -10 -9 -9 -8 -7 -7 -7 -6 -5 -5 -5 -5 -4 ---------- Run | Yrd Mat Min Mat Min Mat Fac Was Fac Fac Fac Upp Upp Zhi Pro Machines Disabled 25 | . . . . . 13 . . 9 . . 1 . 2 . Max in Single Turn 2 | . . . . . 2 . . . . . 1 . 1 . Garrison Access 2 | . . . . . 1 . . 1 . . . . . . Machines Repaired . | . . . . . . . . . . . . . . . Machines Dismantled . | . . . . . . . . . . . . . . . Machines Sabotaged . | . . . . . . . . . . . . . . . Overloaded Fab Kills . | . . . . . . . . . . . . . . . Hacking | -11 -10 -10 -9 -9 -8 -7 -7 -7 -6 -5 -5 -5 -5 -4 --------- Run | Yrd Mat Min Mat Min Mat Fac Was Fac Fac Fac Upp Upp Zhi Pro Machines Accessed 19 | . 1 . 3 . 6 1 . 3 1 . . . 4 . Terminals 9 | . 1 . 2 . 4 1 . 1 . . . . . . Fabricators 1 | . . . . . . . . 1 . . . . . . Repair Stations 2 | . . . . . 1 . . . 1 . . . . . Recycling Units 1 | . . . . . 1 . . . . . . . . . Scanalyzers 1 | . . . 1 . . . . . . . . . . . Garrison Access 1 | . . . . . . . . 1 . . . . . . Total Hacks 53 | . 1 . 9 . 15 3 . 6 2 . . . 17 . Successful 32 | . . . 3 . 7 1 . 2 2 . . . 17 . Failed 21 | . 1 . 6 . 8 2 . 4 . . . . . . Catastrophic 8 | . 1 . 3 . 2 . . 2 . . . . . . Database Lockouts . | . . . . . . . . . . . . . . . Manual 14 | . . . 5 . 4 2 . 3 . . . . . . Terminals 21 | . 1 . 7 . 9 3 . 1 . . . . . . Fabricators 1 | . . . . . . . . 1 . . . . . . Repair Stations 7 | . . . . . 5 . . . 2 . . . . . Recycling Units 1 | . . . . . 1 . . . . . . . . . Scanalyzers 2 | . . . 2 . . . . . . . . . . . Garrison Access 4 | . . . . . . . . 4 . . . . . . Terminal Hacks 23 | . . . 2 . 4 . . . . . . . 17 . Record 6 | . . . 1 . . . . . . . . . 5 . Part Schematic 4 | . . . . . . . . . . . . . 4 . Robot Analysis 4 | . . . . . . . . . . . . . 4 . Prototype ID Bank 5 | . . . 1 . . . . . . . . . 4 . Reprogram Traps 1 | . . . . . 1 . . . . . . . . . Registered Components 1 | . . . . . 1 . . . . . . . . . Zone Layout 2 | . . . . . 2 . . . . . . . . . Fabricator Hacks . | . . . . . . . . . . . . . . . Repair Station Hacks 4 | . . . . . 2 . . . 2 . . . . . Scan Component 2 | . . . . . 1 . . . 1 . . . . . Repair 2 | . . . . . 1 . . . 1 . . . . . Recycling Unit Hacks . | . . . . . . . . . . . . . . . Scanalyzer 1 | . . . 1 . . . . . . . . . . . Insert Component 1 | . . . 1 . . . . . . . . . . . Garrison Access Hacks . | . . . . . . . . . . . . . . . Unauthorized Hacks 4 | . . . . . 1 1 . 2 . . . . . . Terminals 2 | . . . . . 1 1 . . . . . . . . Botnet 2 | . . . . . 1 1 . . . . . . . . Fabricators 1 | . . . . . . . . 1 . . . . . . Liberate 1 | . . . . . . . . 1 . . . . . . Repair Stations . | . . . . . . . . . . . . . . . Recycling Units . | . . . . . . . . . . . . . . . Scanalyzers . | . . . . . . . . . . . . . . . Garrison Access 1 | . . . . . . . . 1 . . . . . . Jam 1 | . . . . . . . . 1 . . . . . . Data Cores Recovered . | . . . . . . . . . . . . . . . Used . | . . . . . . . . . . . . . . . Hacking Detections 11 | . 1 . 2 . 4 1 . 2 1 . . . . . Full Trace Events . | . . . . . . . . . . . . . . . Feedback Events . | . . . . . . . . . . . . . . . Feedback Blocked . | . . . . . . . . . . . . . . . Robot Schematics Acquired . | . . . . . . . . . . . . . . . Robots Built . | . . . . . . . . . . . . . . . Authchips . | . . . . . . . . . . . . . . . Time . | . . . . . . . . . . . . . . . Total Robot Build Rating . | . . . . . . . . . . . . . . . Part Schematics Acquired 4 | . . . . . . . . . . . . . 4 . Parts Built . | . . . . . . . . . . . . . . . Authchips . | . . . . . . . . . . . . . . . Time . | . . . . . . . . . . . . . . . Total Part Build Rating . | . . . . . . . . . . . . . . . Parts Repaired 2 | . . . . . 1 . . . 1 . . . . . Time 180 | . . . . . 136 . . . 44 . . . . . Parts Recycled . | . . . . . . . . . . . . . . . Recycled Matter . | . . . . . . . . . . . . . . . Retrieved Matter . | . . . . . . . . . . . . . . . Retrieved Components . | . . . . . . . . . . . . . . . Parts Scanalyzed 1 | . . . 1 . . . . . . . . . . . Part Schematics Acquired . | . . . . . . . . . . . . . . . Parts Damaged 1 | . . . 1 . . . . . . . . . . . Bothacking | -11 -10 -10 -9 -9 -8 -7 -7 -7 -6 -5 -5 -5 -5 -4 ------------ Run | Yrd Mat Min Mat Min Mat Fac Was Fac Fac Fac Upp Upp Zhi Pro Used RIF Installer . | . . . . . . . . . . . . . . . Robots Hacked . | . . . . . . . . . . . . . . . Non-combat . | . . . . . . . . . . . . . . . Combat . | . . . . . . . . . . . . . . . Robot Hacks Applied . | . . . . . . . . . . . . . . . Relay Couplers Released 3 | . . . . . 3 . . . . . . . . . Machine Destruction 3 | . . . . . 3 . . . . . . . . . Fabnet Peak Effective % . | . . . . . . . . . . . . . . . Robots Rewired 1 | . . . . . . . . . . . 1 . . . Allies Hacked . | . . . . . . . . . . . . . . . Hacks Repelled . | . . . . . . . . . . . . . . . Allies | -11 -10 -10 -9 -9 -8 -7 -7 -7 -6 -5 -5 -5 -5 -4 -------- Run | Yrd Mat Min Mat Min Mat Fac Was Fac Fac Fac Upp Upp Zhi Pro Total Allies 3 | . . . . . . . . 2 . . 1 . . . Largest Group 2 | . . . . . . . . 2 2 . 1 1 . . Highest-Rated Group 64 | . . . . . . . . 64 64 . 29 29 . . Highest-Rated Ally 32 | . . . . . . . . 32 32 . 29 29 . . Total Orders . | . . . . . . . . . . . . . . . Ally Attacks 43 | . . . . . . . . 25 5 . 3 10 . . Total Damage 1400 | . . . . . . . . 1003 219 . 20 158 . . Kills 16 | . . . . . . . . 12 1 . 1 2 . . Allies Corrupted . | . . . . . . . . . . . . . . . Allies Melted . | . . . . . . . . . . . . . . . Intel | -11 -10 -10 -9 -9 -8 -7 -7 -7 -6 -5 -5 -5 -5 -4 ------- Run | Yrd Mat Min Mat Min Mat Fac Was Fac Fac Fac Upp Upp Zhi Pro Robot Analysis Total 4 | . . . . . . . . . . . . . 4 . Derelict Logs Recovered 8 | . . 1 . 2 . . . . . . 2 2 . 1 Drone Launches . | . . . . . . . . . . . . . . . Drone Recoveries . | . . . . . . . . . . . . . . . Exploration | -11 -10 -10 -9 -9 -8 -7 -7 -7 -6 -5 -5 -5 -5 -4 ------------- Run | Yrd Mat Min Mat Min Mat Fac Was Fac Fac Fac Upp Upp Zhi Pro Turns Passed 13659 | 20 381 488 602 642 4294 164 110 2074 644 1570 1199 426 363 682 Spaces Moved 6905 | 5 209 291 270 339 1989 91 87 1013 266 531 835 316 229 434 Core 81 | . . . . . . . 32 48 . . . . . 1 Treads 4251 | . 178 291 270 339 1989 91 55 713 65 260 . . . . Legs 2122 | 5 31 . . . . . . . 2 271 835 316 229 433 Wheels 451 | . . . . . . . . 252 199 . . . . . Hover . | . . . . . . . . . . . . . . . Flight . | . . . . . . . . . . . . . . . Fastest Speed 50 | 120 120 160 160 160 155 158 50 50 130 120 120 120 120 50 Average Speed 152 | 120 154 160 160 160 161 158 125 152 161 213 120 120 120 119 Slowest Speed 330 | 120 160 160 160 160 165 158 240 325 270 330 120 120 120 120 Overloaded Moves . | . . . . . . . . . . . . . . . Propulsion Burnouts . | . . . . . . . . . . . . . . . Robots Hopped . | . . . . . . . . . . . . . . . Cave-ins Triggered . | . . . . . . . . . . . . . . . Exploration Rate (%) 44 | 2 55 72 21 67 93 3 70 34 7 10 71 53 60 52 Regions Visited 14 Branch Regions 6 Pre-discovered Areas 4 | . . . . 1 . . . . . . . . 3 . Known Exits Taken 1 | . . . . . . . . . . 1 . . . . Unknown Exits Taken 11 | 1 1 1 1 1 1 . . 1 1 . 1 1 1 . Scrap Searched 9 | . . 1 . 1 . . . . . . 5 1 . 1 Spaces Dug 30 | . . . . . 17 . . . 10 3 . . . . Terrain Destroyed 688 | . . . 1 . 468 . . 2 52 13 13 22 . 117 Melee . | . . . . . . . . . . . . . . . Projectile 74 | . . . 1 . 11 . . 2 6 12 13 6 . 23 AOE 613 | . . . . . 457 . . . 46 . . 16 . 94 Terrain Rammed . | . . . . . . . . . . . . . . . Walls Destroyed . | . . . . . . . . . . . . . . . Machines Disabled . | . . . . . . . . . . . . . . . Actions | -11 -10 -10 -9 -9 -8 -7 -7 -7 -6 -5 -5 -5 -5 -4 --------- Run | Yrd Mat Min Mat Min Mat Fac Was Fac Fac Fac Upp Upp Zhi Pro Total 8759 | 9 242 304 373 402 2578 103 87 1348 418 788 947 344 285 531 Wait 750 | . . 7 53 44 182 . . 150 85 121 40 3 4 61 Move 6892 | 4 208 290 269 338 1988 91 86 1012 265 530 834 315 228 434 Hop . | . . . . . . . . . . . . . . . Pick Up 95 | . 10 2 4 . 29 1 . 24 5 7 5 3 4 1 Fast Attach 93 | . 1 . 4 . 17 4 . 23 8 22 3 2 9 . Attach 57 | . . . 1 . 15 1 . 9 3 9 12 5 1 1 Detach 5 | . . . . . 1 . . . . 2 1 . 1 . Swap 91 | . 3 . 6 . 47 . . 12 2 7 4 2 6 2 Drop 100 | . 6 . 3 . 40 2 1 17 7 8 4 4 5 3 Fire 650 | 5 14 5 32 18 250 4 . 97 38 80 41 10 27 29 Melee . | . . . . . . . . . . . . . . . Ram 2 | . . . . . . . . . 2 . . . . . Kick . | . . . . . . . . . . . . . . . Crush 18 | . . . 1 1 9 . . 4 3 . . . . . Escape Stasis 2 | . . . . . . . . . . 2 . . . . Rewire 4 | . . . . 1 . . . . . . 3 . . . Trap . | . . . . . . . . . . . . . . . Miscellaneous . | . . . . . . . . . . . . . . . Route ------- -11/Scrapyard -10/Materials (discovered 3 exits: *Mat / [*Min x2]) -10/Mines -9/Materials -9/Mines (discovered 3 exits: *Mat / [*Exi] / [*Zio]) -8/Materials (discovered 4 exits: *Fac x3 / *Sto) -7/Factory -7/Waste -7/Factory -6/Factory -5/Factory -5/Upper Caves -5/Upper Caves (discovered 2 exits: [*Fac] / *Zhi) -5/Zhirov -4/Proximity Caves History --------- Turn | Location | Event 13 | -11/Scrapyard | Discovered new exit (range 2) 21 | -11/Scrapyard | Entered Materials 199 | -10/Materials | Discovered new exit (range 15) 287 | -10/Materials | Discovered new exit (range 16) 304 | -10/Materials | Build established: Mutant 386 | -10/Materials | Discovered new exit (range 8) 402 | -10/Materials | Entered Mines 494 | -10/Mines | Found a damaged Exp. Sensor Array with a note attached 497 | -10/Mines | Found Prototype Device 547 | -10/Mines | Discovered new exit (range 5) 555 | -10/Mines | Learned Materials emergency access door positions 890 | -10/Mines | Entered Materials 890 | -9/Materials | Evolved 2 slots: Propulsion x1, Utility x1 1354 | -9/Materials | Discovered new exit (range 6) 1377 | -9/Materials | Identified Exp. Sensor Array 1492 | -9/Materials | Entered Mines 1493 | -9/Mines | Assembled infested the area 1548 | -9/Mines | Met 8R-AWN 1577 | -9/Mines | Discovered new exit (range 5) 1631 | -9/Mines | Discovered new exit (range 10) 1733 | -9/Mines | A Derelict revealed a hidden shortcut to a safe place 1805 | -9/Mines | Learned location of Storage (-8) 2134 | -9/Mines | Entered Materials 2134 | -8/Materials | Evolved 2 slots: Propulsion x1, Utility x1 2135 | -8/Materials | Identified exit to Storage 2356 | -8/Materials | Lost 4 parts (1u3w) 2361 | -8/Materials | Destroyed 7 combat bots 2967 | -8/Materials | Discovered new exit (range 16) 3309 | -8/Materials | Garrison activated, responded to threat 3381 | -8/Materials | Destroyed 8 combat bots 3402 | -8/Materials | Build established: Scavenger-Mutant 3480 | -8/Materials | Discovered new exit (range 6) 3783 | -8/Materials | Build established: Mutant 3953 | -8/Materials | Repaired Broken Exp. Sensor Array? 4083 | -8/Materials | Discovered new exit (range 11) 4129 | -8/Materials | Core integrity fell below 50% 4179 | -8/Materials | Lost 6 parts (1p2u3w) 4184 | -8/Materials | System corruption reached 10% 4934 | -8/Materials | First assault squad dispatched 6133 | -8/Materials | Sterilization system engaged 6133 | -8/Materials | Non-combat units ordered to evacuate 6233 | -8/Materials | Combat units ordered to evacuate 6428 | -8/Materials | Entered Factory 6428 | -7/Factory | Evolved 2 slots: Propulsion x1, Utility x1 6429 | -7/Factory | Identified exit to Lower Caves 6592 | -7/Factory | Sucked down chute 6592 | -7/Factory | Entered Waste 6607 | -7/Waste | EMP discharged 6623 | -7/Waste | Spotted C-40 Crusher 6626 | -7/Waste | Spotted C-40 Crusher 6657 | -7/Waste | Spotted C-40 Crusher 6669 | -7/Waste | Crushed by Compactor (1 part destroyed, 1 dropped) 6672 | -7/Waste | Crushed by Compactor (1 part destroyed, 1 dropped) 6672 | -7/Waste | Spotted C-40 Crusher 6675 | -7/Waste | Crushed by Compactor (1 part destroyed, 1 dropped) 6680 | -7/Waste | Spotted C-40 Crusher 6682 | -7/Waste | Crushed by Compactor (1 part destroyed, 2 dropped) 6685 | -7/Waste | Spotted C-40 Crusher 6685 | -7/Waste | Crushed by Compactor (1 part destroyed, 2 dropped) 6694 | -7/Waste | Discovered new exit (range 16) 6702 | -7/Waste | Entered Factory 6716 | -7/Factory | Lost 5 parts (3n2w) 7522 | -7/Factory | System corruption reached 10% 7731 | -7/Factory | Core integrity fell below 50% 7776 | -7/Factory | Garrison activated, responded to threat 7892 | -7/Factory | Build established: Scavenger-Mutant 8044 | -7/Factory | Lost 3 parts (2n1u) 8300 | -7/Factory | Build established: Mutant 8302 | -7/Factory | First assault squad dispatched 8431 | -7/Factory | Lost 4 parts (3n1u) 8701 | -7/Factory | Discovered new exit (range 8) 8776 | -7/Factory | Entered another Factory area 8776 | -6/Factory | Accompanied by 2 allies 8776 | -6/Factory | Evolved 2 slots: Power x1, Weapon x1 8849 | -6/Factory | Repaired Arm. Huge Wheel 9349 | -6/Factory | Discovered new exit (range 15) 9353 | -6/Factory | Garrison activated, responded to threat 9377 | -6/Factory | Destroyed 7 combat bots 9420 | -6/Factory | Entered another Factory area 9420 | -5/Factory | Evolved 2 slots: Propulsion x1, Utility x1 9445 | -5/Factory | Lost 11 parts (2p4n3u2w) 10301 | -5/Factory | Lost 4 parts (1p1u2w) 10543 | -5/Factory | System corruption reached 10% 10975 | -5/Factory | Discovered new exit (range 8) 10983 | -5/Factory | Identified exit to Upper Caves 10990 | -5/Factory | Entered Upper Caves 11257 | -5/Upper Caves | Spotted B-75 Beast 11288 | -5/Upper Caves | Core integrity fell below 50% 11314 | -5/Upper Caves | Destroyed B-75 Beast 11339 | -5/Upper Caves | Lost 4 parts (1p1u2w) 11591 | -5/Upper Caves | Learned Factory security intel 11614 | -5/Upper Caves | Build established: Scavenger-Tank 11953 | -5/Upper Caves | Attracted the attention of an 0b10 outpost 12030 | -5/Upper Caves | Lost 4 parts (2p2u) 12034 | -5/Upper Caves | Learned Factory trap positions 12147 | -5/Upper Caves | Discovered new exit (range 15) 12189 | -5/Upper Caves | Entered another Upper Caves area 12189 | -5/Upper Caves | Accompanied by 1 ally 12226 | -5/Upper Caves | Core integrity fell below 20% 12241 | -5/Upper Caves | Discovered new exit (range 7) 12259 | -5/Upper Caves | Build established: Tank 12580 | -5/Upper Caves | Learned Factory stockpile data 12600 | -5/Upper Caves | Discovered new exit (range 15) 12615 | -5/Upper Caves | Entered Zhirov 12615 | -5/Zhirov | Discovered new exit (range 3) 12663 | -5/Zhirov | Learned location of Testing (-2) 12663 | -5/Zhirov | Learned location of Quarantine (-3) 12663 | -5/Zhirov | Learned location of Command (-1) 12737 | -5/Zhirov | Found Alien Artifact 12751 | -5/Zhirov | Found Alien Artifact 12751 | -5/Zhirov | Identified Integrated Reactor 12751 | -5/Zhirov | Installed Integrated Reactor, increased core energy generation (+10) 12978 | -5/Zhirov | Entered Proximity Caves 13037 | -4/Proximity Caves | Attracted the attention of an 0b10 checkpoint 13180 | -4/Proximity Caves | Build established: Scavenger-Tank 13598 | -4/Proximity Caves | Build established: Tank 13606 | -4/Proximity Caves | Learned 4 Research zone layouts 13659 | -4/Proximity Caves | Released all parts (13) 13660 | -4/Proximity Caves | Destroyed by H-77 Assassin with Coil Gun Last Messages --------------- 13654_ The unstable cave ceiling collapses. 13656_ Hvy. Rocket Launcher destroyed. 13656_ Slug penetrates G-73 Enforcer. 13656_ G-73 Enforcer destroyed. 13657_ The unstable cave ceiling collapses. 13659_ Released Adv. Myomer Leg. 13659_ Released Enh. Flexi-carbon Leg. 13659_ Released Hcp. Storage Unit. 13659_ Released Enh. Flexi-carbon Leg. 13659_ Released Adv. Heat Sink. 13659_ Released Adv. Myomer Leg. 13659_ Released Fusion Reactor. 13659_ Released Adv. System Shield. 13659_ Released Prc. Matter Filter. 13659_ Released Adv. Assault Cannon. 13659_ Released Enh. Gauss Cannon. 13660_ Dropped Enh. Flexi-carbon Leg. 13660_ C-30 ARC bursts open, deploying its payload. 13660_ H-77 Assassin unfolds itself. Map ----- +----------------------------------------------------+ | ?# ???????????# ##???????????? | | # ??????????# #???????????? | | ???????????? ####### #???????????? | | ???????????????????# #???????????? | | ???????????????????# #???????????? | | ?????????????????????????# ##### #???????????? | | ???????????????#?????????# ##??#####???????????? | | ?????????????? ????????# ##?????????????????? | | ???????????????# ???????# #?????????????????? | | ????????????????# ####### #???????????####??? | | ????????????????# ##??????????## #??? | | ????????????????## ## ######?###### #??? | | ??????????????### ## ## ### ## ##??? | | ??????????????# ##???? | | ?????????????? ##????? | | ??????????????? #### ## #####?????? | | ??????????????? ???## ### ##????????? | | ???????????????? ???## ## #????????? | | ????????????????????## #### #???????? | | ????????????????????# ##??# #??????? | | ????????????????????# ####### ####??????? | | ???????????????????## #### ## ######?????????? | | ??????????????????## ## ## ##??????????????? | | ???????????# #### ## ????????????????? | | ????????????# ]![== ####????????????????? | | ????????????#h% =!=@* ####????????????????? | | ????????????# #####!*!=== #???????????????? | | ?????????? ?????##=|!=! #??????????????? | | ????????? ???????# ==[*% #??????????????? | | ?????????### ????????## ] #?????????????? | | ???????????#??????????## % ???????????? | | ???????????????????????## ??????????? | | ???????????????????????# ??????????? | | ???????????????????????# # ???????????? | | ???????????????????????# ???????????? | | ????????????????????????# ????????????? | | ????????????????# ??????# ????????????? | | ?????????????? ## # ?????????????? | | ?????????????? #???????????? | | ?????????????????### ######## | | ???????????????????##### ##" # | | ???????????????????????### # ### | | ???????????????????????????# | | ???????????????????????????# ## | | ???????????????????????????########?# # | | ?????????????????????????????????????###### ## | | ?????????????????????????????????????????????####? | | ?????????????????????????????????????????????????? | | ?????????????????????????????????????????????????? | | ?????????????????????????????????????????????????? | +----------------------------------------------------+ Best States ------------- Heat Dissipation 86 Coolant Potential 80 Energy Generation 51 Energy Capacity 600 Matter Stores 327 Matter Capacity 450 Sight Range 16 Robot Scan Range 20 Terrain Scan Density 10 Additional Mass Support 9 EM Shielding 2 Armor Coverage 1200 Resistance: TH 10 Utility Shielding 90 Weapon Cycling 15 Evasion (%) 55 Target Analysis 6 Recoil Reduction 8 Matter Filtering 50 Particle Charging 30 Defensive Hacking 14 Item Schematics ----------------- Imp. Arc Thrower | -5/Zhirov | Free Exp. Optical Array | -5/Zhirov | Free Exp. Heat Sink | -5/Zhirov | Free Assault Drone Bay | -5/Zhirov | Free Robot Schematics ------------------ None Fabricated ------------ Nothing Alien Tech Used ----------------- Integrated Reactor Achievements -------------- None Challenges ------------ None Game ------ Seed RemoteTargetShotgun Manual? 0 Play Time 01:37:51 Cumulative 190.5 hours Start 2024.12.05 @ 12:23:56 End 2024.12.05 @ 14:06:08 Sessions 1 Manual Loads 0 Difficulty Rogue Special Mode None Game No. 166 Rogue 147 Adventurer 16 Explorer 3 Win Type - Total 17 Types 8/0/8/1/0/0/0/0/0 Lore% 50 Gallery% 74 Achievement% 67 Wizard Run 0 Options --------- Layout 2 ASCII 0 Keyboard 0 Movement Numpad Keybinds 1 Fullscreen 2 Font 24/Terminus Map View 50x44 Zoom Use 0% Tactical HUD 1 Map Filters NONE Filters NONE Steam 1 RUN: 32125bc9-b033-4d39-935c-36149bc6beae